fUST/lending_fUST_20250209
["ID","MTS","AMOUNT","RATE_DAILY","PERIOD"]
[352364160,1739062241018,-500.0,0.00011369,2]
[352364161,1739062241027,-500.0,0.00011369,2]
[352364163,1739062241036,-1541.77,0.00011369,2]
[352364166,1739062241046,-503.56,0.00011369,2]
[352364168,1739062241055,-753.64,0.00011369,2]
[352364170,1739062241065,-1226.06,0.00011369,2]
[352364172,1739062241075,-500.0,0.00011369,2]
[352364174,1739062241084,-500.0,0.00011369,2]
[352364176,1739062241093,-3414.1,0.00011369,2]
[352364178,1739062241102,-615.85,0.00011369,2]
[352364180,1739062241111,-5436.84,0.00011369,2]
[352364182,1739062241120,-500.0,0.00011369,2]
[352364184,1739062241130,-500.0,0.00011369,2]
[352364186,1739062241140,-1523.3,0.00011369,2]
[352364188,1739062241150,-1117.14,0.00011369,2]
[352364190,1739062241158,-500.0,0.00011369,2]
[352364192,1739062241168,-1232.34,0.00011369,2]
[352364194,1739062241177,-1356.63,0.00011369,2]
[352364195,1739062241186,-500.0,0.00011369,2]
[352364196,1739062241195,-722.36,0.00011369,2]
[352364197,1739062241205,-500.0,0.00011369,2]
[352364198,1739062241215,-591.16,0.00011369,2]
[352364199,1739062241224,-605.72,0.00011369,2]
[352364201,1739062241233,-639.94,0.00011369,2]
[352364203,1739062241243,-660.2,0.00011369,2]
[352364205,1739062241252,-500.0,0.00011369,2]
[352364207,1739062241261,-541.39,0.00011369,2]
[352364209,1739062241270,-500.0,0.00011369,2]
[352364212,1739062241279,-739.17,0.00011369,2]
[352364214,1739062241289,-7887.89,0.00011369,2]
[352364216,1739062241298,-500.0,0.00011369,2]
[352364218,1739062241307,-16409.49,0.00011369,2]
[352364219,1739062241316,-1234.36,0.00011369,2]
[352364222,1739062241325,-2102.52,0.00011369,2]
[352364224,1739062241335,-737.28,0.00011369,2]
[352364226,1739062241345,-917.62,0.00011369,2]
[352364228,1739062241354,-1500.0,0.00011421,2]
[352364230,1739062241363,-500.0,0.00011422,2]
[352364232,1739062241373,-154.5736464,0.00011425,2]
[352364234,1739062241382,-154.5736464,0.00011425,2]
[352364236,1739062241391,-154.457556,0.00011425,2]
[352364238,1739062241401,-271.5204277,0.00011425,2]
[352364240,1739062241410,-500.0,0.00011506,2]
[352364242,1739062241420,-500.0,0.00011506,2]
[352364244,1739062241429,-581.79,0.00011506,2]
[352364246,1739062241439,-500.0,0.00011506,2]
[352364248,1739062241449,-500.0,0.00011506,2]
[352364250,1739062241458,-500.0,0.00011506,2]
[352364252,1739062241467,-626.16209419,0.00011506,2]
[352364254,1739062241477,-500.0,0.00011506,2]
[352364256,1739062241486,-500.0,0.00011506,2]
[352364258,1739062241495,-496.75634672,0.00011506,2]
[352364260,1739062241504,-522.85,0.00011506,2]
[352364262,1739062241513,-500.0,0.00011506,2]
[352364264,1739062241523,-500.0,0.00011506,2]
[352364266,1739062241532,-499.20713837,0.00011506,2]
[352364268,1739062241542,-500.0,0.00011506,2]
[352364270,1739062241551,-595.24,0.00011506,2]
[352364272,1739062241560,-507.35,0.00011506,2]
[352364274,1739062241570,-500.0,0.00011506,2]
[352364276,1739062241579,-500.0,0.00011506,2]
[352364278,1739062241588,-531.55,0.00011506,2]
[352364280,1739062241598,-1731.68,0.00011506,2]
[352364282,1739062241607,-796.45,0.00011506,2]
[352364284,1739062241617,-564.17,0.00011506,2]
[352364286,1739062241626,-806.49,0.00011506,2]
[352364289,1739062241636,-500.0,0.00011506,2]
[352364291,1739062241646,-500.0,0.00011506,2]
[352364292,1739062241655,-1541.77,0.00011506,2]
[352364295,1739062241664,-503.56,0.00011506,2]
[352364297,1739062241673,-753.64,0.00011506,2]
[352364299,1739062241682,-1226.06,0.00011506,2]
[352364301,1739062241691,-610.55,0.00011506,2]
[352364303,1739062241701,-500.0,0.00011506,2]
[352364305,1739062241710,-3414.1,0.00011506,2]
[352364307,1739062241722,-615.85,0.00011506,2]
[352364309,1739062241731,-5436.84,0.00011506,2]
[352364311,1739062241740,-547.65793586,0.00011506,2]
[352364313,1739062241750,-500.0,0.00011506,2]
[352364315,1739062241759,-1523.3,0.00011506,2]
[352364317,1739062241768,-1117.14,0.00011506,2]
[352364319,1739062241778,-500.0,0.00011506,2]
[352364321,1739062241787,-1232.34,0.00011506,2]
[352364323,1739062241797,-1356.63,0.00011506,2]
[352364324,1739062241809,-500.0,0.00011506,2]
[352364327,1739062241818,-722.36,0.00011506,2]
[352364329,1739062241827,-500.0,0.00011506,2]
[352364331,1739062241836,-591.16,0.00011506,2]
[352364333,1739062241845,-605.72,0.00011506,2]
[352364335,1739062241855,-639.94,0.00011506,2]
[352364337,1739062241864,-660.2,0.00011506,2]
[352364339,1739062241873,-500.0,0.00011506,2]
[352364341,1739062241883,-541.39,0.00011506,2]
[352364342,1739062241892,-500.0,0.00011506,2]
[352364344,1739062241901,-739.17,0.00011506,2]
[352364347,1739062241910,-7887.89,0.00011506,2]
[352364349,1739062241919,-500.0,0.00011506,2]
[352364351,1739062241928,-16409.49,0.00011506,2]
[352364353,1739062241937,-1234.36,0.00011506,2]
[352364355,1739062241947,-2102.52,0.00011506,2]
[352364357,1739062241955,-737.28,0.00011506,2]
[352364359,1739062241964,-917.62,0.00011506,2]
[352364361,1739062241973,-163.2599107,0.000116,2]
[352364363,1739062241983,-309.1472928,0.000116,2]
[352364365,1739062241992,-154.5736464,0.000116,2]
[352364367,1739062242001,-500.0,0.00011642,2]
[352364369,1739062242012,-586.26103756,0.00011642,2]
[352364371,1739062242021,-500.0,0.00011643,2]
[352364373,1739062242031,-497.51998629,0.00011643,2]
[352364375,1739062242040,-581.79,0.00011643,2]
[352364377,1739062242050,-500.0,0.00011643,2]
[352364379,1739062242060,-500.0,0.00011643,2]
[352364381,1739062242069,-500.0,0.00011643,2]
[352364383,1739062242078,-500.0,0.00011643,2]
[352364385,1739062242088,-500.0,0.00011643,2]
[352364387,1739062242097,-522.85,0.00011643,2]
[352364389,1739062242106,-500.0,0.00011643,2]
[352364391,1739062242115,-500.0,0.00011643,2]
[352364393,1739062242125,-500.0,0.00011643,2]
[352364395,1739062242134,-595.24,0.00011643,2]
[352364397,1739062242144,-507.35,0.00011643,2]
[352364399,1739062242154,-500.0,0.00011643,2]
[352364401,1739062242163,-500.0,0.00011643,2]
[352364403,1739062242172,-531.55,0.00011643,2]
[352364405,1739062242182,-1731.68,0.00011643,2]
[352364407,1739062242192,-796.45,0.00011643,2]
[352364409,1739062242202,-564.17,0.00011643,2]
[352364411,1739062242211,-806.49,0.00011643,2]
[352364413,1739062242220,-500.0,0.00011643,2]
[352364415,1739062242229,-500.0,0.00011643,2]
[352364417,1739062242239,-1541.77,0.00011643,2]
[352364420,1739062242248,-503.56,0.00011643,2]
[352364422,1739062242258,-753.64,0.00011643,2]
[352364424,1739062242268,-1226.06,0.00011643,2]
[352364426,1739062242277,-500.0,0.00011643,2]
[352364428,1739062242286,-3414.1,0.00011643,2]
[352364429,1739062242295,-615.85,0.00011643,2]
[352364431,1739062242304,-5436.84,0.00011643,2]
[352364434,1739062242314,-500.0,0.00011643,2]
[352364436,1739062242323,-1523.3,0.00011643,2]
[352364438,1739062242332,-500.0,0.00011643,2]
[352364440,1739062242341,-1117.14,0.00011643,2]
[352364442,1739062242351,-1232.34,0.00011643,2]
[352364444,1739062242360,-1356.63,0.00011643,2]
[352364446,1739062242370,-449.45947242,0.00011643,2]
[352364451,1739062242414,-50.54052758,0.00011643,2]
[352364453,1739062242423,-722.36,0.00011643,2]
[352364455,1739062242432,-500.0,0.00011643,2]
[352364457,1739062242442,-591.16,0.00011643,2]
[352364459,1739062242451,-605.72,0.00011643,2]
[352364461,1739062242460,-639.94,0.00011643,2]
[352364463,1739062242469,-660.2,0.00011643,2]
[352364465,1739062242478,-500.0,0.00011643,2]
[352364467,1739062242487,-541.39,0.00011643,2]
[352364469,1739062242496,-500.0,0.00011643,2]
[352364471,1739062242505,-739.17,0.00011643,2]
[352364473,1739062242514,-7887.89,0.00011643,2]
[352364475,1739062242523,-500.0,0.00011643,2]
[352364477,1739062242532,-16409.49,0.00011643,2]
[352364479,1739062242542,-1234.36,0.00011643,2]
[352364481,1739062242551,-2102.52,0.00011643,2]
[352364483,1739062242561,-737.28,0.00011643,2]
[352364485,1739062242571,-917.62,0.00011643,2]
[352364487,1739062242581,-568.3211723,0.00011695,2]
[352364489,1739062242591,-13265.39216455,0.00011738,2]
[352364491,1739062242600,-193.29614,0.0001176,2]
[352364493,1739062242610,-228.279158,0.0001176,2]
[352364496,1739062242619,-151.0,0.0001176,2]
[352364497,1739062242630,-243.618,0.0001176,2]
[352364499,1739062242639,-500.0,0.0001178,2]
[352364501,1739062242648,-581.79,0.0001178,2]
[352364503,1739062242658,-500.0,0.0001178,2]
[352364505,1739062242668,-500.0,0.0001178,2]
[352364507,1739062242677,-500.0,0.0001178,2]
[352364510,1739062242687,-500.0,0.0001178,2]
[352364512,1739062242697,-500.0,0.0001178,2]
[352364514,1739062242706,-522.85,0.0001178,2]
[352364516,1739062242716,-500.0,0.0001178,2]
[352364518,1739062242729,-500.0,0.0001178,2]
[352364520,1739062242738,-500.0,0.0001178,2]
[352364522,1739062242747,-151.0,0.0001178,2]
[352364524,1739062242756,-595.24,0.0001178,2]
[352364526,1739062242767,-235.944697,0.0001178,2]
[352364528,1739062242776,-507.35,0.0001178,2]
[352364530,1739062242786,-151.0,0.0001178,2]
[352364532,1739062242795,-235.944697,0.0001178,2]
[352364533,1739062242804,-151.0,0.0001178,2]
[352364535,1739062242815,-151.0,0.0001178,2]
[352364537,1739062242824,-500.0,0.0001178,2]
[352364539,1739062242833,-500.0,0.0001178,2]
[352364541,1739062242843,-531.55,0.0001178,2]
[352364543,1739062242852,-151.0,0.0001178,2]
[352364545,1739062242861,-1731.68,0.0001178,2]
[352364547,1739062242870,-796.45,0.0001178,2]
[352364549,1739062242881,-151.0,0.0001178,2]
[352364551,1739062242891,-564.17,0.0001178,2]
[352364553,1739062242901,-806.49,0.0001178,2]
[352364555,1739062242910,-500.0,0.0001178,2]
[352364557,1739062242919,-951.389594,0.0001178,2]
[352364560,1739062242929,-951.389594,0.0001178,2]
[352364563,1739062242938,-500.0,0.0001178,2]
[352364565,1739062242947,-1541.77,0.0001178,2]
[352364568,1739062242956,-503.56,0.0001178,2]
[352364569,1739062242965,-753.64,0.0001178,2]
[352364571,1739062242975,-151.0,0.0001178,2]
[352364574,1739062242984,-1226.06,0.0001178,2]
[352364577,1739062242994,-500.0,0.0001178,2]
[352364581,1739062243003,-3414.1,0.0001178,2]
[352364584,1739062243012,-615.85,0.0001178,2]
[352364587,1739062243021,-5436.84,0.0001178,2]
[352364590,1739062243030,-500.0,0.0001178,2]
[352364592,1739062243039,-1523.3,0.0001178,2]
[352364594,1739062243050,-1117.14,0.0001178,2]
[352364596,1739062243059,-500.0,0.0001178,2]
[352364598,1739062243070,-1232.34,0.0001178,2]
[352364601,1739062243079,-1356.63,0.0001178,2]
[352364603,1739062243091,-500.0,0.0001178,2]
[352364605,1739062243101,-722.36,0.0001178,2]
[352364607,1739062243110,-500.0,0.0001178,2]
[352364609,1739062243119,-591.16,0.0001178,2]
[352364611,1739062243130,-605.72,0.0001178,2]
[352364613,1739062243139,-639.94,0.0001178,2]
[352364615,1739062243148,-660.2,0.0001178,2]
[352364617,1739062243158,-500.0,0.0001178,2]
[352364619,1739062243167,-541.39,0.0001178,2]
[352364622,1739062243177,-500.0,0.0001178,2]
[352364624,1739062243187,-739.17,0.0001178,2]
[352364626,1739062243196,-6220.04425557,0.0001178,2]
[352364629,1739062243209,-1667.84574443,0.0001178,2]
[352364631,1739062243218,-107.08425557,0.0001178,2]
[352364633,1739062243230,-392.91574443,0.0001178,2]
[352364635,1739062243239,-2072.84287432,0.0001178,2]
[352364655,1739062243412,-22.25335413,0.0001178,2]
[352365605,1739062331174,-204546.92813366,0.00018799,61]
[352365606,1739062331202,-1227358.35279126,0.00018799,61]
[352365607,1739062331226,-1923975.09608834,0.00018799,61]
[352365608,1739062331253,-1144119.62298674,0.00018799,61]
[352365609,1739062363625,-2753204.65934092,0.00018799,61]
[352365610,1739062363651,-2132071.8974758,0.00018799,61]
[352365611,1739062363675,-114723.44318328,0.00018799,61]
[352365612,1739062367818,-1666137.79547389,0.00017826,61]
[352365613,1739062367847,-372457.81818963,0.00017826,61]
[352365614,1739062367872,-766141.24203252,0.00017826,61]
[352365615,1739062367897,-1104.25196429,0.00017826,120]
[352365616,1739062367923,-774705.53628789,0.00017826,61]
[352365617,1739062367950,-1175898.54386198,0.00017826,61]
[352365618,1739062367976,-243554.8121898,0.00017826,61]
[352365619,1739062371067,-706381.98417663,0.00017826,61]
[352365620,1739062371092,-4293618.01582337,0.00017826,61]
[352365621,1739062416758,3000.0,0.00014,30]
[352365622,1739062417152,3000.0,0.0001401,30]
[352365623,1739062417550,3000.0,0.0001402,30]
[352365644,1739063136142,-228.60005069,0.00010175,2]
[352365645,1739063250083,-400.0,0.00010685,2]
[352365646,1739063250104,-151.0,0.00010951,2]
[352365647,1739063250125,-999.70008997,0.00010957,2]
[352365648,1739063250147,-300.0,0.00010957,2]
[352365649,1739063250169,-320.21791191,0.00010958,2]
[352365650,1739063250191,-500.0,0.00010958,2]
[352365651,1739063250212,-500.0,0.00010958,2]
[352365652,1739063250238,-500.0,0.00010958,2]
[352365653,1739063250259,-500.0,0.00010958,2]
[352365654,1739063250282,-316.86012232,0.00010958,2]
[352365655,1739063250304,-500.0,0.00010958,2]
[352365656,1739063250326,-500.0,0.00010958,2]
[352365657,1739063250346,-500.0,0.00010958,2]
[352365658,1739063250366,-500.0,0.00010958,2]
[352365659,1739063250388,-429.32682617,0.00010958,2]
[352365680,1739063432771,-151.0,0.00010951,2]
[352365682,1739063432780,-300.0,0.00010957,2]
[352365684,1739063432790,-216.0327738,0.00010958,2]
[352365686,1739063432802,-283.9672262,0.00010958,2]
[352365688,1739063432811,-500.0,0.00010958,2]
[352365690,1739063432823,-500.0,0.00010958,2]
[352365692,1739063432832,-500.0,0.00010958,2]
[352365694,1739063432842,-570.67925457,0.00010958,2]
[352365697,1739063432851,-500.0,0.00010958,2]
[352365699,1739063432861,-500.0,0.00010958,2]
[352365701,1739063432871,-576.08,0.00010958,2]
[352365703,1739063432880,-626.01,0.00010958,2]
[352365705,1739063432889,-500.0,0.00010958,2]
[352365707,1739063432899,-159.10296035,0.00010958,2]
[352365709,1739063432908,-500.0,0.00010958,2]
[352365711,1739063432918,-350.42511207,0.00010958,2]
[352365714,1739063432934,-149.57488793,0.00010958,2]
[352365716,1739063432943,-500.0,0.00010958,2]
[352365718,1739063432952,-500.0,0.00010958,2]
[352365719,1739063432962,-186.86,0.00010958,2]
[352365722,1739063432971,-500.0,0.00010958,2]
[352365724,1739063432980,-500.0,0.00010958,2]
[352365726,1739063432991,-528.27907674,0.00010958,2]
[352365728,1739063433000,-500.0,0.00010958,2]
[352365730,1739063433010,-500.0,0.00010958,2]
[352365732,1739063433019,-584.0,0.00010958,2]
[352365734,1739063433029,-500.0,0.00010958,2]
[352365736,1739063433039,-500.0,0.00010958,2]
[352365738,1739063433049,-558.88805911,0.00010958,2]
[352365740,1739063433058,-500.0,0.00010958,2]
[352365742,1739063433068,-500.0,0.00010958,2]
[352365744,1739063433080,-500.0,0.00010958,2]
[352365746,1739063433090,-500.0,0.00010958,2]
[352365748,1739063433099,-500.0,0.00010958,2]
[352365750,1739063433109,-500.0,0.00010958,2]
[352365752,1739063433119,-500.0,0.00010958,2]
[352365754,1739063433129,-594.09,0.00010958,2]
[352365756,1739063433139,-500.0,0.00010958,2]
[352365758,1739063433148,-228.61713637,0.00010958,2]
[352365760,1739063433158,-500.0,0.00010958,2]
[352365762,1739063433167,-500.0,0.00010958,2]
[352365763,1739063433177,-500.0,0.00010958,2]
[352365764,1739063433187,-500.0,0.00010958,2]
[352365765,1739063433196,-500.0,0.00010958,2]
[352365766,1739063433206,-500.0,0.00010958,2]
[352365767,1739063433215,-500.0,0.00010958,2]
[352365768,1739063433225,-500.0,0.00010958,2]
[352365769,1739063433235,-500.0,0.00010958,2]
[352365770,1739063433244,-500.0,0.00010958,2]
[352365771,1739063433254,-500.0,0.00010958,2]
[352365772,1739063433263,-500.0,0.00010958,2]
[352365773,1739063433273,-500.0,0.00010958,2]
[352365774,1739063433287,-500.0,0.00010958,2]
[352365775,1739063433296,-500.0,0.00010958,2]
[352365776,1739063433306,-500.0,0.00010958,2]
[352365777,1739063433315,-500.0,0.00010958,2]
[352365778,1739063433326,-500.0,0.00010958,2]
[352365779,1739063433335,-517.65,0.00010958,2]
[352365780,1739063433344,-500.0,0.00010958,2]
[352365781,1739063433354,-500.0,0.00010958,2]
[352365782,1739063433365,-500.0,0.00010958,2]
[352365783,1739063433375,-500.0,0.00010958,2]
[352365784,1739063433385,-500.0,0.00010958,2]
[352365785,1739063433394,-260.08,0.00010958,2]
[352365786,1739063433403,-500.0,0.00010958,2]
[352365787,1739063433413,-500.0,0.00010958,2]
[352365788,1739063433423,-501.09459429,0.00010958,2]
[352365789,1739063433432,-500.0,0.00010958,2]
[352365790,1739063433442,-500.0,0.00010958,2]
[352365791,1739063433451,-500.0,0.00010958,2]
[352365792,1739063433460,-500.0,0.00010958,2]
[352365793,1739063433469,-500.0,0.00010958,2]
[352365794,1739063433479,-500.0,0.00010958,2]
[352365795,1739063433488,-570.44,0.00010958,2]
[352365796,1739063433498,-500.0,0.00010958,2]
[352365797,1739063433507,-500.0,0.00010958,2]
[352365798,1739063433516,-530.24,0.00010958,2]
[352365799,1739063433526,-500.0,0.00010958,2]
[352365800,1739063433535,-727.4,0.00010958,2]
[352365801,1739063433545,-571.4472996,0.00010958,2]
[352365802,1739063433554,-1767.69,0.00010958,2]
[352365803,1739063433564,-500.0,0.00010958,2]
[352365804,1739063433574,-500.0,0.00010958,2]
[352365805,1739063433584,-900.22,0.00010958,2]
[352365806,1739063433784,-784.1,0.00010958,2]
[352365807,1739063433795,-500.0,0.00010958,2]
[352365808,1739063433805,-500.0,0.00010958,2]
[352365809,1739063433815,-500.0,0.00010958,2]
[352365810,1739063433825,-500.0,0.00010958,2]
[352365811,1739063433834,-2109.57,0.00010958,2]
[352365812,1739063433844,-500.0,0.00010958,2]
[352365813,1739063433854,-793.72,0.00010958,2]
[352365814,1739063433863,-561.49,0.00010958,2]
[352365815,1739063433872,-500.0,0.00010958,2]
[352365816,1739063433882,-500.0,0.00010958,2]
[352365817,1739063433892,-500.0,0.00010958,2]
[352365818,1739063433903,-500.0,0.00010958,2]
[352365819,1739063433912,-500.0,0.00010958,2]
[352365820,1739063433922,-500.0,0.00010958,2]
[352365821,1739063433932,-500.0,0.00010958,2]
[352365822,1739063433941,-500.0,0.00010958,2]
[352365823,1739063433950,-500.0,0.00010958,2]
[352365824,1739063433960,-500.0,0.00010958,2]
[352365825,1739063433970,-500.0,0.00010958,2]
[352365826,1739063433980,-500.0,0.00010958,2]
[352365827,1739063433990,-525.31,0.00010958,2]
[352365828,1739063433999,-743.07,0.00010958,2]
[352365829,1739063434009,-187.83452598,0.00010958,2]
[352365830,1739063434018,-500.0,0.00010958,2]
[352365831,1739063434027,-500.0,0.00010958,2]
[352365832,1739063434036,-500.0,0.00010958,2]
[352365833,1739063434046,-500.0,0.00010958,2]
[352365834,1739063434056,-500.0,0.00010958,2]
[352365835,1739063434065,-500.0,0.00010958,2]
[352365836,1739063434075,-500.0,0.00010958,2]
[352365837,1739063434084,-1196.16,0.00010958,2]
[352365838,1739063434094,-500.0,0.00010958,2]
[352365839,1739063434104,-500.0,0.00010958,2]
[352365840,1739063434113,-500.0,0.00010958,2]
[352365841,1739063434123,-430.93,0.00010958,2]
[352365842,1739063434132,-471.29003738,0.00010958,2]
[352365843,1739063434141,-611.02,0.00010958,2]
[352365844,1739063434157,-1201.82,0.00010958,2]
[352365845,1739063434167,-3331.08,0.00010958,2]
[352365846,1739063434176,-500.0,0.00010958,2]
[352365847,1739063434185,-5286.54,0.00010958,2]
[352365848,1739063434195,-500.0,0.00010958,2]
[352365849,1739063434204,-500.0,0.00010958,2]
[352365850,1739063434214,-682.99,0.00010958,2]
[352365851,1739063434223,-500.0,0.00010958,2]
[352365852,1739063434232,-500.0,0.00010958,2]
[352365853,1739063434241,-500.0,0.00010958,2]
[352365854,1739063434250,-500.0,0.00010958,2]
[352365855,1739063434260,-607.45,0.00010958,2]
[352365856,1739063434269,-500.0,0.00010958,2]
[352365857,1739063434279,-500.0,0.00010958,2]
[352365858,1739063434291,-500.0,0.00010958,2]
[352365859,1739063434300,-1457.40578673,0.00010958,2]
[352366080,1739064440136,-288.96810005,9.606e-05,2]
[352366081,1739064450087,-45.71132405,9.606e-05,2]
[352366082,1739064450109,-2018.78507323,9.899e-05,2]
[352366085,1739064548125,-2734.6312,9.899e-05,2]
[352366086,1739064562137,-70.05156005,9.899e-05,2]
[352366087,1739064562162,-300.0,9.999e-05,2]
[352366088,1739064562185,-49542.11001382,0.0001,4]
[352366089,1739064562210,-1634.49582613,0.00010035,2]
[352366090,1739064565128,-1072.29970477,0.00010035,2]
[352366091,1739064570102,-400.0,0.00010685,2]
[352366092,1739064570122,-153.0,0.00010778,2]
[352366093,1739064570141,-6639.46709005,0.000108,2]
[352366180,1739064632237,-300.0,0.00010799,2]
[352366182,1739064632246,-3071.52504382,0.000108,2]
[352366713,1739064637882,-876.9399101,0.000108,2]
[352366716,1739064637896,-1689.05245608,0.000108,2]
[352366929,1739064639853,-53660.06880735,0.000108,2]
[352366931,1739064639863,-153.0,0.000108,2]
[352366933,1739064639872,-215.7975175,0.000108,2]
[352366935,1739064639882,-153.9973728,0.000108,2]
[352366937,1739064639891,-309.1472928,0.000108,2]
[352366939,1739064639902,-153.0,0.000108,2]
[352366941,1739064639911,-153.0,0.000108,2]
[352366943,1739064639921,-217.2876729,0.00010951,2]
[352366945,1739064639930,-506.56351704,0.00010958,2]
[352366947,1739064639940,-500.0,0.00010958,2]
[352366949,1739064639950,-500.0,0.00010958,2]
[352366951,1739064639960,-154.20203108,0.00010958,2]
[352366953,1739064639970,-500.0,0.00010958,2]
[352366955,1739064639979,-500.0,0.00010958,2]
[352366957,1739064639988,-500.0,0.00010958,2]
[352366959,1739064639998,-351.16877617,0.00010958,2]
[352366961,1739064640007,-500.0,0.00010958,2]
[352366963,1739064640016,-500.0,0.00010958,2]
[352366965,1739064640024,-549.43,0.00010958,2]
[352366967,1739064640035,-500.0,0.00010958,2]
[352366969,1739064640044,-500.0,0.00010958,2]
[352366971,1739064640053,-500.0,0.00010958,2]
[352366973,1739064640063,-500.0,0.00010958,2]
[352366976,1739064640072,-358.92039839,0.00010958,2]
[352366978,1739064640082,-500.0,0.00010958,2]
[352366980,1739064640091,-500.0,0.00010958,2]
[352366982,1739064640104,-500.0,0.00010958,2]
[352366984,1739064640113,-500.0,0.00010958,2]
[352366986,1739064640122,-500.0,0.00010958,2]
[352366987,1739064640131,-500.0,0.00010958,2]
[352366990,1739064640142,-500.0,0.00010958,2]
[352366991,1739064640151,-500.0,0.00010958,2]
[352366993,1739064640160,-646.46,0.00010958,2]
[352366995,1739064640169,-500.0,0.00010958,2]
[352366997,1739064640178,-666.33,0.00010958,2]
[352366999,1739064640187,-500.0,0.00010958,2]
[352367001,1739064640196,-347.22046123,0.00010958,2]
[352367004,1739064640213,-152.77953877,0.00010958,2]
[352367006,1739064640222,-500.0,0.00010958,2]
[352367008,1739064640231,-538.06997693,0.00010958,2]
[352367010,1739064640240,-500.0,0.00010958,2]
[352367012,1739064640250,-181.84,0.00010958,2]
[352367014,1739064640259,-500.0,0.00010958,2]
[352367016,1739064640268,-500.0,0.00010958,2]
[352367018,1739064640278,-500.0,0.00010958,2]
[352367020,1739064640288,-500.0,0.00010958,2]
[352367022,1739064640297,-500.0,0.00010958,2]
[352367024,1739064640306,-500.0,0.00010958,2]
[352367026,1739064640316,-500.0,0.00010958,2]
[352367028,1739064640326,-513.48,0.00010958,2]
[352367030,1739064640335,-500.0,0.00010958,2]
[352367032,1739064640344,-625.57,0.00010958,2]
[352367034,1739064640354,-500.0,0.00010958,2]
[352367036,1739064640363,-500.0,0.00010958,2]
[352367038,1739064640372,-500.0,0.00010958,2]
[352367040,1739064640381,-500.0,0.00010958,2]
[352367042,1739064640391,-500.0,0.00010958,2]
[352367044,1739064640401,-500.0,0.00010958,2]
[352367046,1739064640410,-500.0,0.00010958,2]
[352367048,1739064640420,-500.0,0.00010958,2]
[352367050,1739064640429,-500.0,0.00010958,2]
[352367052,1739064640439,-500.0,0.00010958,2]
[352367054,1739064640448,-500.0,0.00010958,2]
[352367056,1739064640457,-500.0,0.00010958,2]
[352367058,1739064640467,-649.37443697,0.00010958,2]
[352367060,1739064640476,-500.0,0.00010958,2]
[352367062,1739064640485,-500.0,0.00010958,2]
[352367064,1739064640496,-500.0,0.00010958,2]
[352367066,1739064640504,-500.0,0.00010958,2]
[352367068,1739064640514,-500.0,0.00010958,2]
[352367070,1739064640523,-500.0,0.00010958,2]
[352367072,1739064640533,-500.0,0.00010958,2]
[352367074,1739064640542,-500.0,0.00010958,2]
[352367076,1739064640551,-500.0,0.00010958,2]
[352367078,1739064640560,-500.0,0.00010958,2]
[352367080,1739064640569,-500.0,0.00010958,2]
[352367082,1739064640578,-538.7,0.00010958,2]
[352367084,1739064640587,-575.55527857,0.00010958,2]